bitfinex/quotes_ETHUSD_20220123
["timestamp","ask_amount","ask_price","bid_price","bid_amount"]
[1642949397436,0.1655,2416.8,2416.4,1.27848066]
[1642949397650,0.18545082,2416.9,2416.4,2.81553805]
[1642949397837,0.42809533,2417.3,2416.9,3.45]
[1642949398040,0.42809533,2417.3,2416.8,1.51092794]
[1642949398041,0.42809533,2417.3,2417.0,1.42684097]
[1642949398737,0.05904338,2417.2,2416.7,0.21754635]
[1642949398994,0.05904338,2417.2,2416.5,0.20546724]
[1642949398995,0.0373895,2417.2,2416.5,0.20546724]
[1642949399293,0.42809533,2417.3,2416.1,0.20546724]
[1642949399492,0.42809533,2417.3,2415.9,0.01298811]
[1642949399493,0.1655,2417.2,2415.9,0.01298811]
[1642949399691,0.00736063,2417.1,2415.9,0.01298811]
[1642949399892,0.1655,2417.2,2416.0,1.44046627]
[1642949399893,0.1655,2417.0,2416.0,1.44046627]
[1642949400096,0.1655,2417.1,2415.7,1.10166434]
[1642949400297,0.20618,2417.0,2415.5,0.10919998]
[1642949400511,1.2645,2416.9,2415.5,0.10919998]
[1642949400702,2.2879,2416.9,2415.5,0.10919998]
[1642949401300,2.2879,2416.9,2415.7,1.52379269]
[1642949401701,2.2879,2416.9,2415.5,1.47122206]
[1642949401702,0.28068111,2416.8,2415.5,0.10919998]
[1642949401900,0.6645,2416.7,2415.5,0.10919998]
[1642949402298,0.6645,2416.7,2416.3,0.01258217]
[1642949402602,0.1655,2417.3,2416.4,0.01755314]
[1642949402830,0.1655,2417.7,2416.8,1.28821926]
[1642949403130,0.1653,2417.8,2416.3,0.21804941]
[1642949403433,0.1653,2417.8,2416.3,0.01258217]
[1642949403630,0.1653,2417.8,2416.4,0.20546724]
[1642949404035,0.1653,2417.8,2416.6,1.16291747]
[1642949404236,0.1653,2417.8,2417.1,0.05697638]
[1642949404435,4.6299,2418.2,2416.5,0.46566724]
[1642949404639,0.20618,2418.1,2416.5,0.46566724]
[1642949404937,0.1653,2418.0,2416.5,0.46566724]
[1642949405134,0.1653,2418.1,2416.5,0.46566724]
[1642949405336,0.1653,2418.1,2417.1,1.08674556]
[1642949405737,0.1653,2418.1,2417.5,1.46828025]
[1642949405941,3.9656,2418.2,2417.4,0.2322]
[1642949405942,4.1309,2418.2,2417.4,0.2322]
[1642949406140,4.1309,2418.2,2417.1,0.2658]
[1642949406338,4.1309,2418.2,2416.7,0.20546724]
[1642949406794,3.9656,2418.2,2417.4,1.33354812]
[1642949406992,3.9656,2418.2,2417.9,1.52345277]
[1642949407200,4.649,2418.8,2417.9,1.52345277]
[1642949407201,8.84719788,2421.3,2418.1,8.00546724]
[1642949407404,4.28529158,2420.4,2418.9,0.06099101]
[1642949407602,8.57058317,2421.5,2418.9,0.06099101]
[1642949407603,6.8935,2421.8,2420.5,1.26792122]
[1642949407801,6.8935,2421.8,2420.8,1.03359]
[1642949407802,0.04092649,2421.8,2420.8,1.03359]
[1642949407995,2.06687,2423.4,2421.2,6.234]
[1642949407996,5.71178534,2423.4,2421.2,6.234]
[1642949408198,14.1014,2423.7,2423.3,1.25387932]
[1642949408199,1.53202629,2423.5,2423.3,1.25387932]
[1642949408500,6.1349,2423.7,2423.4,0.20653]
[1642949408695,6.1349,2423.7,2423.6,0.20653]
[1642949408899,0.165,2425.0,2423.7,5.0]
[1642949409096,7.14215264,2425.1,2423.8,1.02538394]
[1642949409097,0.1648,2425.1,2423.8,1.02538394]
[1642949409297,0.00937588,2425.5,2423.8,6.66887922]
[1642949409298,30.70175205,2425.3,2423.8,6.66887922]
[1642949409496,30.70175205,2425.3,2424.0,0.0123983]
[1642949409497,30.52615615,2425.3,2424.0,0.0123983]
[1642949409696,30.52615615,2425.3,2424.1,0.6638]
[1642949409896,30.52615615,2425.3,2424.0,0.0123983]
[1642949409897,30.52615615,2425.3,2424.5,1.30616325]
[1642949410098,30.52615615,2425.3,2424.5,0.9104]
[1642949410330,0.1648,2425.2,2424.5,0.9104]
[1642949410530,30.52615615,2425.3,2424.5,0.9104]
[1642949410729,0.1648,2425.2,2424.5,0.0001]
[1642949411032,0.21618,2425.2,2424.5,0.0001]
[1642949411229,0.21618,2425.2,2424.1,1.54732707]
[1642949411429,0.21618,2425.2,2423.4,1.03249]
[1642949411639,0.0036024,2425.1,2423.5,1.47335017]
[1642949411837,0.0036024,2425.1,2422.8,0.20653]
[1642949411838,0.21618,2425.0,2422.8,0.20653]
[1642949412036,0.03570794,2424.9,2422.7,0.1648]
[1642949412237,23.76,2424.7,2422.7,0.1648]
[1642949412441,7.85,2424.0,2422.5,1.58839754]
[1642949412634,0.21638,2423.9,2422.9,1.42036806]
[1642949413035,0.165,2423.9,2423.7,1.51424253]
[1642949413238,0.165,2424.0,2423.7,0.01140362]
[1642949413436,0.165,2424.6,2423.6,0.7969]
[1642949413838,1.13238442,2424.0,2423.6,0.7969]
[1642949414087,0.165,2424.7,2423.6,0.5078]
[1642949414286,0.499,2425.5,2423.6,0.5078]
[1642949414287,0.165,2424.8,2424.6,1.18155001]
[1642949414486,0.0026582,2425.3,2425.0,1.11706765]
[1642949414884,0.1648,2426.2,2425.0,1.11706765]
[1642949415086,1.36574298,2425.2,2425.0,1.11706765]
[1642949415486,1.36574298,2425.2,2424.5,0.13819997]
[1642949415487,1.36574298,2425.2,2424.5,0.34472997]
[1642949415687,0.1648,2426.0,2424.5,0.34472997]
[1642949415889,0.1648,2426.0,2424.7,1.03192]
[1642949416089,0.05138,2426.0,2424.7,1.03192]
[1642949416393,3.7576,2426.3,2424.5,0.34472997]
[1642949416394,0.1648,2425.9,2425.8,1.5068225]
[1642949416587,1.25286381,2425.8,2425.3,1.50422784]
[1642949416789,1.25286381,2425.8,2425.0,0.20653]
[1642949416988,3.7576,2426.3,2425.0,0.20653]
[1642949416989,3.9224,2426.3,2425.0,0.20653]
[1642949417287,3.8224,2426.3,2425.0,1.07693]
[1642949417488,3.8224,2426.3,2425.4,1.14156909]
[1642949417489,0.02820075,2426.2,2425.4,1.14156909]
[1642949417729,7.85,2426.1,2424.9,0.5925]
[1642949417936,7.85,2426.1,2424.5,0.13819997]
[1642949417937,1.22182207,2425.9,2424.5,0.13819997]
[1642949418136,0.37088,2425.8,2424.5,0.13819997]
[1642949418335,0.1648,2425.8,2424.5,0.13819997]
[1642949418532,0.0148,2425.8,2424.5,0.13819997]
[1642949418742,0.0148,2425.8,2425.6,1.14948084]
[1642949418938,0.0148,2425.8,2424.7,0.3404]
[1642949418939,1.17425031,2425.9,2424.8,0.88051814]
[1642949419133,1.17425031,2425.9,2424.7,0.3404]
[1642949419134,8.3256,2426.4,2424.7,0.02291814]
[1642949419333,8.3256,2426.4,2425.1,1.03183]
[1642949419534,8.3256,2426.4,2425.2,0.07043028]
[1642949419736,8.3256,2426.4,2425.1,1.48754]
[1642949419737,8.1608,2426.4,2425.3,2.06327]
[1642949419934,8.1608,2426.4,2425.3,1.38478893]
[1642949420133,8.1608,2426.4,2425.1,1.67844754]
[1642949420335,8.1608,2426.4,2425.1,2.71027754]
[1642949420734,8.1608,2426.4,2425.2,0.01185718]
[1642949420942,8.1608,2426.4,2425.4,0.00492386]
[1642949421136,1.33214893,2425.8,2425.4,0.00492386]
[1642949421340,8.1608,2426.4,2426.1,1.26751351]
[1642949421593,1.1914,2426.7,2426.5,1.46512327]
[1642949421781,1.1914,2426.7,2425.7,0.16706416]
[1642949421980,1.1914,2426.7,2425.4,0.31931]
[1642949421981,0.01583545,2426.6,2425.4,0.31931]
[1642949422179,0.1648,2426.6,2425.4,0.1648]
[1642949422881,1.11129225,2426.5,2425.8,1.12134519]
[1642949423581,1.11129225,2426.5,2425.8,1.27585519]
[1642949423781,1.11129225,2426.5,2426.2,1.47734833]
[1642949423983,1.1914,2426.7,2426.2,2.07266239]
[1642949424189,0.2087382,2427.6,2426.9,0.3279]
[1642949424190,0.1648,2427.5,2426.9,0.3279]
[1642949424385,0.1647,2427.7,2426.7,0.3788]
[1642949424582,0.1647,2427.7,2426.3,0.012663]
[1642949424783,8.4015,2428.0,2426.3,0.012663]
[1642949424784,6.7788582,2427.9,2426.3,0.012663]
[1642949424985,6.7788582,2427.9,2426.1,0.13819997]
[1642949424986,0.03436998,2427.7,2426.1,0.13819997]
[1642949425241,0.08166587,2427.5,2426.1,0.13819997]
[1642949425434,3.88689911,2427.7,2425.7,1.5418335]
[1642949425632,0.05158,2427.6,2425.7,1.5418335]
[1642949426133,1.29855125,2427.4,2425.7,0.13819997]
[1642949426536,0.01453894,2427.2,2426.3,0.0100753]
[1642949426745,6.7788582,2427.9,2426.7,0.01264109]
[1642949427134,6.7788582,2427.9,2426.8,1.29661474]
[1642949427334,6.7788582,2427.9,2427.3,0.05254102]
[1642949427536,6.7788582,2427.9,2427.2,1.12505608]
[1642949427537,1.33267046,2427.8,2427.2,1.12505608]
[1642949427735,1.33267046,2427.8,2427.6,1.26038639]
[1642949427942,1.33267046,2427.8,2427.2,0.2306]
[1642949428138,1.33267046,2427.8,2426.5,0.13819997]
[1642949428973,1.33267046,2427.8,2426.7,1.1926484]
[1642949429775,8.4015,2428.0,2427.2,1.15036229]
[1642949429976,8.4015,2428.0,2426.6,0.21847953]
[1642949429977,0.02005384,2427.9,2426.6,0.21847953]
[1642949430179,8.4015,2428.0,2426.6,0.21847953]
[1642949430379,8.4015,2428.0,2426.6,1.24961953]
[1642949430579,8.4015,2428.0,2426.5,0.13819997]
[1642949430780,0.0563,2427.9,2426.5,0.13819997]
[1642949430979,1.37807448,2427.8,2426.8,1.39879733]
[1642949431187,0.05979525,2427.7,2426.5,0.13819997]
[1642949431386,0.03116207,2427.5,2425.8,1.03148]
[1642949431586,0.10792,2427.4,2425.7,0.13819997]
[1642949431785,0.10792,2427.4,2425.3,3.2587891]
[1642949431786,0.04922323,2427.3,2425.3,3.0939891]
[1642949432005,0.04922323,2427.3,2424.8,0.01255999]
[1642949432006,0.0361658,2427.1,2424.8,0.01255999]
[1642949432183,1.03197,2426.6,2425.4,1.16275192]
[1642949432385,0.05641,2426.5,2424.8,0.01255999]
[1642949432586,0.05158,2426.4,2424.8,0.21870999]
[1642949432837,0.05643,2426.3,2424.8,0.01255999]
[1642949433040,0.09280313,2426.2,2424.8,0.01255999]
[1642949433237,0.10788,2426.1,2423.9,0.20615]
[1642949433442,4.16567634,2426.1,2424.0,0.01262057]
[1642949433638,4.46567634,2426.1,2424.0,0.01262057]
[1642949433838,0.02199325,2426.0,2424.0,0.01262057]
[1642949434045,0.10776,2425.9,2424.0,0.01262057]
[1642949434239,0.04890217,2425.8,2424.0,0.01262057]
[1642949434439,0.08686514,2425.6,2424.1,1.47879764]
[1642949434646,0.10763,2425.7,2424.1,1.47879764]
[1642949434839,0.10763,2425.7,2424.1,1.68494764]
[1642949435039,0.10763,2425.7,2424.1,0.20615]
[1642949435241,0.10763,2425.7,2424.0,1.18308704]
[1642949435242,0.03915642,2425.6,2424.0,0.10082054]
[1642949435442,0.03461938,2425.4,2424.0,0.10082054]
[1642949435639,0.10751,2425.5,2424.0,0.10082054]
[1642949435640,0.04585426,2425.2,2424.0,0.10082054]
[1642949435839,0.05566,2425.4,2424.0,0.10082054]
[1642949436041,0.05566,2425.4,2424.2,0.89079608]
[1642949436240,1.52758984,2425.3,2424.3,0.03033199]
[1642949436478,0.05158,2425.5,2424.2,0.89079608]
[1642949436479,0.57296753,2424.4,2424.2,0.89079608]
[1642949436681,0.57296753,2424.4,2424.0,0.10082054]
[1642949436884,7.63682569,2425.5,2424.0,0.10082054]
[1642949436885,0.056,2425.5,2424.0,0.10082054]
[1642949437087,0.1381,2425.6,2424.7,0.92872]
[1642949437290,0.1381,2425.6,2424.8,0.03303226]
[1642949437485,0.1381,2425.6,2424.7,0.92872]
[1642949437685,0.1381,2425.6,2425.1,1.23308026]
[1642949437886,1.40994926,2425.5,2425.1,1.23308026]
[1642949438087,0.1381,2425.6,2424.9,0.01219171]
[1642949438388,0.05738,2426.2,2424.9,0.01219171]
[1642949438589,0.05738,2426.2,2424.1,0.012209]
[1642949438590,8.35548,2425.9,2424.1,0.012209]
[1642949438792,0.155671,2425.8,2424.0,0.10082054]
[1642949439186,0.09546942,2425.8,2424.0,0.05082054]
[1642949439389,0.97858664,2424.1,2424.0,0.05082054]
[1642949439794,0.97858664,2424.1,2424.0,0.25697054]
[1642949439991,0.97858664,2424.1,2424.0,0.05082054]
[1642949440225,0.97858664,2424.1,2423.6,1.0523795]
[1642949440226,0.97858664,2424.1,2423.6,0.02]
[1642949440826,0.97858664,2424.1,2423.6,1.34777417]
[1642949441026,0.97858664,2424.1,2423.6,0.02]
[1642949441427,0.97858664,2424.1,2423.7,0.02505964]
[1642949441830,0.97858664,2424.1,2423.6,0.02]
[1642949442232,0.96085885,2424.1,2423.6,0.02]
[1642949442631,0.04885652,2424.0,2423.6,0.02]
[1642949443032,0.96085885,2424.1,2423.6,0.02]
[1642949443435,0.96085885,2424.1,2423.1,0.01228549]
[1642949443436,6.25,2423.9,2422.5,1.13567]
[1642949443640,1.12197073,2422.7,2422.6,1.09977724]
[1642949443835,1.12197073,2422.7,2422.5,0.21818705]
[1642949444117,1.15010001,2423.6,2422.6,1.365526]
[1642949444413,0.05000001,2423.6,2422.7,0.01705418]
[1642949444815,0.05000001,2423.6,2423.0,1.39313595]
[1642949445020,0.05000001,2423.6,2422.4,0.20615]
[1642949445214,1.26748205,2423.6,2422.4,2.2716209]
[1642949445916,1.26748205,2423.6,2423.3,1.23395881]
[1642949445917,0.05000001,2423.6,2423.3,1.23395881]
[1642949446119,0.05627,2424.2,2423.4,0.05960828]
[1642949446318,0.00265951,2424.6,2423.4,0.05960828]
[1642949446519,0.00265951,2424.6,2423.3,1.23395881]
[1642949446718,0.15930001,2424.7,2423.3,1.23395881]
[1642949446919,1.49759153,2423.7,2423.4,0.0247109]
[1642949447118,0.05158,2424.5,2423.3,2.77862513]
[1642949447320,0.10772001,2424.7,2423.3,2.77862513]
[1642949447528,4.52419001,2424.8,2423.4,0.02594602]
[1642949447730,3.49152001,2424.8,2423.3,1.55735737]
[1642949447935,3.54310001,2424.8,2423.3,1.55735737]
[1642949448131,0.10049505,2424.7,2423.3,0.01269105]
[1642949448332,0.05158,2424.6,2423.3,0.01269105]
[1642949448534,0.05158,2424.6,2422.7,0.20615]
[1642949448535,1.0,2424.5,2422.7,0.20615]
[1642949448735,6.70320698,2424.4,2422.7,0.20615]
[1642949448935,3.49152001,2424.8,2423.6,1.29359384]
[1642949449141,3.49417952,2424.8,2423.7,0.04671177]
[1642949449335,3.49417952,2424.8,2423.5,1.47850947]
[1642949449336,3.49417952,2424.8,2424.0,1.25017301]
[1642949449536,0.14075951,2424.8,2423.5,1.47850947]
[1642949449736,0.1381,2424.8,2423.7,1.0323166]
[1642949450140,1.14475119,2424.3,2423.9,1.11700524]
[1642949450341,0.1381,2424.8,2424.0,0.02177287]
[1642949450540,0.1381,2424.8,2423.7,1.2384666]
[1642949450743,0.1381,2424.8,2423.7,0.20615]
[1642949450945,0.1381,2424.8,2423.5,0.01288938]
[1642949451243,0.1381,2424.8,2423.6,0.02911378]
[1642949451489,1.14169776,2424.2,2423.8,1.4320116]
[1642949451678,1.14169776,2424.2,2423.5,0.92912]
[1642949451881,1.14169776,2424.2,2423.3,0.20615]
[1642949452279,0.06385916,2424.1,2423.3,1.2386147]
[1642949452483,1.14169776,2424.2,2423.3,1.0324647]
[1642949452685,1.14169776,2424.2,2423.9,1.4494087]
[1642949452881,0.1381,2424.8,2423.9,1.4494087]
[1642949452882,0.1381,2424.8,2424.0,0.05305742]
[1642949453083,0.1381,2424.8,2424.4,1.26253306]
[1642949453282,0.03737941,2425.0,2424.0,0.05305742]
[1642949453482,0.03737941,2425.0,2423.8,1.38795654]
[1642949454082,1.15808211,2424.3,2423.7,0.01279856]
[1642949454283,0.08999717,2424.2,2423.7,0.01279856]
[1642949454482,1.15808211,2424.3,2423.6,2.0645811]
[1642949454884,1.15808211,2424.3,2423.6,2.1707311]
[1642949455083,1.15808211,2424.3,2423.6,1.9645811]
[1642949455345,0.03737941,2425.0,2423.9,0.08912863]
[1642949455541,0.03737941,2425.0,2424.0,1.30830718]
[1642949455741,0.03737941,2425.0,2423.9,0.01266994]
[1642949455942,0.04196945,2424.9,2423.9,0.01266994]
[1642949456341,0.03737941,2425.0,2424.0,0.04410864]
[1642949456747,1.36667722,2424.3,2423.9,1.4825501]
[1642949456948,1.36667722,2424.3,2424.0,1.29935364]
[1642949457852,0.03737941,2425.0,2424.0,1.29935364]
[1642949458248,0.03737941,2425.0,2423.8,1.0322776]
[1642949458451,0.03737941,2425.0,2423.6,4.0287011]
[1642949458751,1.0,2424.9,2423.4,0.01287475]
[1642949458991,0.02314096,2424.7,2423.2,0.1648]
[1642949459187,0.02498956,2424.5,2423.2,0.1648]
[1642949459387,0.02498956,2424.5,2422.3,0.07082054]
[1642949459388,24.56528956,2424.5,2422.3,0.07082054]
[1642949459586,23.76,2424.3,2422.3,0.08363387]
[1642949459789,1.03306,2423.9,2422.3,0.08363387]
[1642949459986,1.92506,2423.9,2422.3,0.08363387]
[1642949460186,0.892,2423.9,2422.7,1.34659932]
[1642949460389,0.892,2423.9,2422.3,0.08363387]
[1642949460585,0.892,2423.9,2422.3,0.28978387]
[1642949460789,0.892,2423.9,2422.4,0.0098153]
[1642949460994,0.05158,2424.3,2422.4,2.0752496]
[1642949461189,0.05158,2424.3,2422.5,4.247621]
[1642949461393,23.81423951,2424.5,2423.1,1.34765952]
[1642949461592,23.81158,2424.5,2423.1,1.34765952]
[1642949461993,26.01225,2424.5,2422.4,2.0654343]
[1642949462199,26.01225,2424.5,2422.3,0.07082054]
[1642949462200,0.0818313,2423.5,2422.3,0.07082054]
[1642949462394,0.05158,2423.5,2422.3,0.07082054]
[1642949462593,0.499,2424.2,2422.3,0.07082054]
[1642949462839,0.05158,2424.3,2422.4,0.01233218]
[1642949462840,0.00265951,2424.3,2422.4,0.01233218]
[1642949463043,1.14136679,2423.5,2423.3,1.51967273]
[1642949463638,1.14136679,2423.5,2422.8,0.20615]
[1642949464037,1.14136679,2423.5,2422.8,1.69936868]
[1642949464641,1.14136679,2423.5,2423.2,1.27962985]
[1642949464941,1.14136679,2423.5,2422.8,0.20615]
[1642949465549,0.00265951,2424.4,2422.9,2.06742686]
[1642949465743,3.9181,2424.7,2423.0,0.025952]
[1642949465945,0.00265951,2424.8,2423.0,0.025952]
[1642949465946,0.00265951,2424.8,2423.7,1.16200131]
[1642949466142,0.03737941,2425.0,2423.7,1.16200131]
[1642949466580,1.33820984,2424.0,2423.7,1.16200131]
[1642949467185,1.33820984,2424.0,2423.7,1.36815131]
[1642949467783,0.03737941,2425.0,2423.7,1.36815131]
[1642949467983,0.03737941,2425.0,2423.8,1.07348475]
[1642949468187,0.08895941,2425.0,2423.8,1.0322794]
[1642949468389,8.6786,2425.2,2423.9,0.23210667]
[1642949468587,2.06462,2425.9,2423.9,0.23210667]
[1642949468588,0.00265951,2425.8,2423.9,0.23210667]
[1642949468784,1.11856293,2424.9,2424.5,1.21212238]
[1642949468984,1.11856293,2424.9,2424.4,1.9934]
[1642949469184,1.11856293,2424.9,2424.7,1.16373637]
[1642949469583,0.00265951,2425.6,2425.5,1.1605267]
[1642949469790,3.99118,2426.2,2424.8,0.01048528]
[1642949469791,0.17484788,2424.9,2424.8,0.01048528]
[1642949469985,0.00265951,2426.1,2424.8,0.20615]
[1642949470237,3.9163,2426.3,2424.6,0.20615]
[1642949470624,3.9163,2426.3,2425.4,1.38384661]
[1642949470835,3.9163,2426.3,2424.6,0.20615]
[1642949470836,0.05158,2426.4,2424.6,0.20615]
[1642949471031,0.05158,2426.4,2424.7,2.0634614]
[1642949471232,0.05158,2426.4,2424.7,1.9602797]
[1642949471436,0.05158,2426.4,2424.8,0.20615]
[1642949471633,3.7065,2426.5,2425.0,1.0]
[1642949471833,3.7065,2426.5,2426.1,1.16209211]
[1642949471834,1.30604642,2426.2,2426.1,1.16209211]
[1642949472031,1.30604642,2426.2,2426.0,0.9486]
[1642949472630,4.09571051,2427.3,2426.1,0.06595238]
[1642949472829,4.09571051,2427.3,2425.9,1.9422027]
[1642949472830,0.00423951,2427.3,2425.9,1.0314027]
[1642949473031,0.00423951,2427.3,2426.5,1.21176068]
[1642949473232,1.37557941,2427.5,2426.6,0.04744449]
[1642949473633,1.37557941,2427.5,2426.0,1.36463531]
[1642949473634,0.62940923,2426.7,2426.0,1.36463531]
[1642949474287,0.62940923,2426.7,2426.5,1.33809075]
[1642949474488,0.01584873,2426.6,2426.4,0.2816]
[1642949474692,0.01584873,2426.6,2426.4,0.764]
[1642949474896,0.62940923,2426.7,2426.4,0.5682]
[1642949475096,1.37557941,2427.5,2426.4,0.5682]
[1642949475294,1.37557941,2427.5,2426.5,0.0383899]
[1642949475295,0.87557941,2427.5,2426.5,0.0383899]
[1642949475498,6.8256,2427.9,2426.7,0.01204245]
[1642949475499,6.63851892,2427.9,2426.7,0.01204245]
[1642949475695,1.0,2427.8,2426.4,0.2866]
[1642949475896,6.63851892,2427.9,2426.3,0.01298797]
[1642949476104,8.5281,2427.7,2426.4,1.0311246]
[1642949476295,0.10049505,2427.6,2426.4,1.0311246]
[1642949476595,8.5281,2427.7,2426.7,1.19313429]
[1642949476795,8.5281,2427.7,2426.8,0.02083982]
[1642949476796,1.43849452,2427.6,2426.8,0.02083982]
[1642949476995,1.43849452,2427.6,2426.7,0.7287481]
[1642949477396,1.43849452,2427.6,2426.4,1.0311246]
[1642949477733,1.43849452,2427.6,2426.2,2.40661507]
[1642949477734,0.04894194,2427.5,2426.2,2.40661507]
[1642949478024,0.04894194,2427.5,2426.2,2.20046507]
[1642949478225,0.06103876,2427.5,2425.7,0.1647]
[1642949478423,0.39894863,2427.5,2425.9,1.4790192]
[1642949478626,0.31209682,2427.5,2425.9,1.4790192]
[1642949478823,0.0897561,2427.5,2425.7,0.1647]
[1642949479430,0.01209682,2427.5,2425.7,0.04875]
[1642949479626,0.01209682,2427.5,2425.8,0.01958615]
[1642949479627,1.03157,2427.3,2425.8,0.01958615]
[1642949479828,0.93202735,2425.9,2425.7,1.36430278]
[1642949480331,1.03157,2427.3,2425.7,1.36430278]
[1642949480532,8.5281,2427.7,2425.9,0.05238814]
[1642949480732,8.5281,2427.7,2426.1,0.0131374]
[1642949481137,8.5281,2427.7,2425.7,0.1648]
[1642949481138,0.04097638,2427.6,2425.7,0.1648]
[1642949481330,0.04097638,2427.6,2425.5,4.02929837]
[1642949481331,0.12782819,2427.6,2425.5,4.02929837]
[1642949481587,1.12782819,2427.6,2425.5,4.02929837]
[1642949481785,1.12782819,2427.6,2425.7,1.36774985]
[1642949481786,0.12782819,2427.6,2425.7,1.36774985]
[1642949481986,0.12782819,2427.6,2426.2,0.05535295]
[1642949481987,1.03152,2427.4,2426.2,0.05535295]
[1642949482186,1.03152,2427.4,2426.1,0.01252423]
[1642949482388,1.03152,2427.4,2425.8,1.54947996]
[1642949482587,0.08685181,2427.6,2426.0,0.0044807]
[1642949482788,8.5281,2427.7,2426.2,0.0578827]
[1642949482988,8.5281,2427.7,2426.3,0.20615]
[1642949483188,0.0121199,2427.6,2426.8,1.496659]
[1642949483387,1.31638936,2427.5,2426.0,2.0624409]
[1642949483593,0.05235898,2427.4,2426.0,2.0624409]
[1642949483991,1.43088936,2427.5,2426.1,1.0312622]
[1642949484191,1.31638936,2427.5,2426.2,0.01830799]
[1642949484388,1.31638936,2427.5,2426.1,1.0312622]
[1642949484389,1.31638936,2427.5,2426.1,1.2374122]
[1642949484588,8.5281,2427.7,2427.0,1.29380301]
[1642949484589,0.71644021,2427.1,2427.0,1.29380301]
[1642949484789,0.71644021,2427.1,2427.0,1.16442271]
[1642949485242,0.71644021,2427.1,2426.3,0.21828501]
[1642949485535,0.71644021,2427.1,2426.3,0.20615]
[1642949485536,0.01679518,2427.0,2426.3,0.20615]
[1642949485736,0.01679518,2427.0,2426.0,2.2685909]
[1642949486031,0.71644021,2427.1,2426.0,2.2685909]
[1642949486234,1.31638936,2426.4,2426.1,1.41460046]
[1642949486435,0.6135,2427.5,2426.1,1.41460046]
[1642949487238,0.6135,2427.5,2425.7,0.01245234]
[1642949487443,0.6135,2427.5,2423.7,0.52]
[1642949487444,2.65005295,2427.4,2425.2,1.42616861]
[1642949487644,0.01231865,2427.1,2425.1,4.29334119]
[1642949487840,0.6135,2427.0,2425.2,0.20615]
[1642949488043,0.6135,2427.0,2425.1,0.27639993]
[1642949488044,0.70035181,2427.0,2425.1,0.27639993]
[1642949488241,0.70035181,2427.0,2425.4,1.1315982]
[1642949488539,0.70035181,2427.0,2425.7,1.13703363]
[1642949488540,0.55178237,2426.1,2425.7,1.13703363]
[1642949488744,0.499,2426.8,2425.7,1.13703363]
[1642949488995,0.499,2426.8,2425.5,0.01207701]
[1642949488996,0.1145,2427.0,2425.5,0.01207701]
[1642949489585,0.10049505,2426.9,2426.0,1.11110892]
[1642949489789,0.1145,2427.3,2426.4,1.28858431]
[1642949489988,1.63439754,2427.5,2426.8,2.54392352]
[1642949489989,1.16634058,2427.2,2426.8,2.54392352]
[1642949490191,0.71746754,2427.5,2426.8,1.28800645]
[1642949490192,0.60296754,2427.5,2426.8,1.28800645]
[1642949490387,0.60296754,2427.5,2427.3,1.42220933]
[1642949490586,0.60296754,2427.5,2426.9,0.20615]
[1642949490786,0.60296754,2427.5,2426.9,1.1662]
[1642949491192,0.04745831,2427.4,2426.9,1.1662]
[1642949491390,0.60296754,2427.5,2426.9,1.1662]
[1642949491391,0.07079884,2427.1,2426.9,1.1662]
[1642949491794,1.44783936,2427.2,2427.0,1.20357499]
[1642949491993,1.44783936,2427.2,2426.5,0.20615]
[1642949492195,1.44783936,2427.2,2426.2,0.20615]
[1642949492196,0.0300028,2427.1,2426.2,0.20615]
[1642949492393,1.44783936,2427.2,2426.2,0.20615]
[1642949492592,1.44783936,2427.2,2426.7,1.49466211]
[1642949492833,1.44783936,2427.2,2426.7,1.44466211]
[1642949493036,0.60296754,2427.5,2426.8,1.48208818]
[1642949493240,0.60296754,2427.5,2427.2,1.24927938]
[1642949493641,0.60296754,2427.5,2426.9,0.20615]
[1642949494144,1.12068784,2427.4,2426.7,0.20615]
[1642949494341,1.12068784,2427.4,2426.5,0.20615]
[1642949494342,0.05135429,2427.3,2426.5,0.20615]
[1642949494540,1.12068784,2427.4,2426.5,0.20615]
[1642949494942,1.12068784,2427.4,2426.9,1.13693265]
[1642949495341,0.96214174,2427.0,2426.5,0.20615]
[1642949495544,0.60296754,2427.5,2426.6,1.20068178]
[1642949496141,0.60296754,2427.5,2426.1,2.28049835]
[1642949496584,0.60296754,2427.5,2426.9,1.26178084]
[1642949497184,1.38279373,2427.2,2426.7,1.34207181]
[1642949497489,1.38279373,2427.2,2426.5,0.20615]
[1642949498085,1.38279373,2427.2,2426.7,1.4149546]
[1642949498287,0.60296754,2427.5,2426.7,1.4149546]
[1642949498486,0.60296754,2427.5,2426.7,1.6211046]
[1642949499390,0.60296754,2427.5,2427.1,1.39931013]
[1642949499588,0.60296754,2427.5,2427.1,1.60546013]
[1642949499796,8.5281,2427.7,2427.2,0.01048099]
[1642949499989,8.5281,2427.7,2427.5,1.10661651]
[1642949500248,6.7755,2428.2,2427.5,1.09897193]
[1642949500442,1.36808222,2428.0,2427.6,1.45760703]
[1642949500639,1.36808222,2428.0,2427.5,1.09897193]
[1642949501040,0.61673119,2428.4,2427.5,1.09897193]
[1642949501641,0.1145,2428.6,2427.9,1.13585779]
[1642949501840,1.03096,2428.7,2427.0,4.15514123]
[1642949501841,1.03096,2428.7,2427.3,0.20615]
[1642949502044,1.302701,2428.0,2427.6,1.50970583]
[1642949502642,1.77306523,2428.7,2427.6,1.71585583]
[1642949502940,1.71906523,2428.7,2427.9,1.27744111]
[1642949503540,0.01582624,2428.6,2427.9,1.27744111]
[1642949503741,1.60456523,2428.7,2427.6,0.20615]
[1642949503987,0.10049505,2428.6,2427.6,0.20615]
[1642949504384,1.60456523,2428.7,2427.6,0.20615]
[1642949504886,1.60456523,2428.7,2427.9,1.12594419]
[1642949505086,0.1145,2428.6,2427.9,1.12594419]
[1642949505892,0.1145,2428.6,2428.0,0.04149407]
[1642949506096,1.19067487,2428.1,2427.9,1.12594419]
[1642949506496,0.62760523,2428.7,2427.9,1.12594419]
[1642949506903,0.62760523,2428.7,2427.3,0.30289996]
[1642949506904,0.03972855,2428.6,2427.1,0.1647]
[1642949507100,0.03972855,2428.6,2426.2,4.01694126]
[1642949507101,0.012143,2428.1,2426.2,4.01694126]
[1642949507401,0.012143,2428.1,2426.0,0.20615]
[1642949507402,2.06288,2427.8,2426.0,0.20615]
[1642949507596,0.66641569,2427.7,2426.0,0.20615]
[1642949507839,0.6135,2427.7,2426.6,4.14544777]
[1642949508038,0.6135,2427.7,2426.6,1.29544777]
[1642949508636,0.07699721,2427.6,2426.6,1.29544777]
[1642949508837,0.57599721,2427.6,2426.6,1.29544777]
[1642949509038,1.33176124,2426.9,2426.5,0.20615]
[1642949509641,0.499,2427.6,2426.5,0.20615]